[Event "Titled Tuesday Blitz March 07 Early 2023"]
[White "Gamage, Wanshini Vidusama"]
[Black "Prieto Aranguren, Alain"]
[WhiteFideId "9953752"]
[BlackFideId "2268906"]
[WhiteElo "2186"]
[BlackElo "2209"]
[Result "0-1"]
[Round "11"]
[TimeControl "180+2"]
[Date "2023.03.07"]
[WhiteClock "0:00:42"]
[BlackClock "0:01:11"]

1. e4 {[%clk 0:02:22]}  c6 {[%clk 0:02:40]} 2. d4 {[%clk 0:02:21]}  d5 {[%clk 0:02:40]} 3. e5 {[%clk 0:02:22]}  c5 {[%clk 0:02:40]} 4. Nf3 {[%clk 0:02:21]}  Nc6 {[%clk 0:02:39]} 5. dxc5 {[%clk 0:02:21]}  Bg4 {[%clk 0:02:39]} 6. Bb5 {[%clk 0:02:21]}  e6 {[%clk 0:02:39]} 7. Be3 {[%clk 0:02:18]}  Ne7 {[%clk 0:02:37]} 8. Nbd2 {[%clk 0:02:16]}  Nf5 {[%clk 0:02:36]} 9. Qe2 {[%clk 0:02:13]}  Nxe3 {[%clk 0:02:35]} 10. Qxe3 {[%clk 0:02:14]}  Qa5 {[%clk 0:02:34]} 11. Bxc6+ {[%clk 0:02:13]}  bxc6 {[%clk 0:02:33]} 12. O-O {[%clk 0:02:03]}  Bxc5 {[%clk 0:02:31]} 13. Qg5 {[%clk 0:01:56]}  Bxf3 {[%clk 0:02:12]} 14. Nxf3 {[%clk 0:01:57]}  O-O {[%clk 0:02:12]} 15. c3 {[%clk 0:01:53]}  Qd8 {[%clk 0:02:09]} 16. Qxd8 {[%clk 0:01:51]}  Rfxd8 {[%clk 0:02:08]} 17. Nd4 {[%clk 0:01:51]}  Bxd4 {[%clk 0:02:05]} 18. cxd4 {[%clk 0:01:52]}  Rab8 {[%clk 0:02:05]} 19. b3 {[%clk 0:01:51]}  Rb4 {[%clk 0:02:04]} 20. Rfd1 {[%clk 0:01:50]}  Rc8 {[%clk 0:02:00]} 21. Rac1 {[%clk 0:01:50]}  a5 {[%clk 0:02:00]} 22. Rc5 {[%clk 0:01:47]}  a4 {[%clk 0:02:00]} 23. Rd3 {[%clk 0:01:47]}  g5 {[%clk 0:01:57]} 24. f3 {[%clk 0:01:39]}  Kg7 {[%clk 0:01:56]} 25. Kf2 {[%clk 0:01:39]}  Kg6 {[%clk 0:01:56]} 26. g4 {[%clk 0:01:31]}  h5 {[%clk 0:01:56]} 27. h3 {[%clk 0:01:31]}  hxg4 {[%clk 0:01:56]} 28. hxg4 {[%clk 0:01:32]}  Ra8 {[%clk 0:01:53]} 29. Rxc6 {[%clk 0:01:27]}  axb3 {[%clk 0:01:53]} 30. axb3 {[%clk 0:01:27]}  Ra3 {[%clk 0:01:48]} 31. Rcc3 {[%clk 0:01:27]}  Ra2+ {[%clk 0:01:48]} 32. Ke3 {[%clk 0:01:27]}  Rb2 {[%clk 0:01:39]} 33. f4 {[%clk 0:01:17]}  Rb5 {[%clk 0:01:30]} 34. Kf3 {[%clk 0:01:00]}  Rb8 {[%clk 0:01:29]} 35. Ke3 {[%clk 0:00:52]}  Rh8 {[%clk 0:01:29]} 36. fxg5 {[%clk 0:00:51]}  Kxg5 {[%clk 0:01:15]} 37. Rd2 {[%clk 0:00:42]}  Rh3+ {[%clk 0:01:13]} 38. Ke2 {[%clk 0:00:42]}  Rh2+ {[%clk 0:01:11]} 0-1


[Site "https://www.chess.com"]

[Event "Titled Tuesday Blitz March 07 Early 2023"]
[White "Aanan, Shafiuddin"]
[Black "Qashashvili, Alexandre"]
[WhiteFideId "3242633"]
[BlackFideId "13600842"]
[WhiteElo "1648"]
[BlackElo "2405"]
[Result "1-0"]
[Round "11"]
[TimeControl "180+2"]
[Date "2023.03.07"]
[WhiteClock "0:01:22"]
[BlackClock "0:02:06"]

1. e4 {[%clk 0:03:00]}  c6 {[%clk 0:02:59]} 2. d4 {[%clk 0:03:00]}  d5 {[%clk 0:02:58]} 3. e5 {[%clk 0:03:00]}  Bf5 {[%clk 0:02:58]} 4. h4 {[%clk 0:03:00]}  h5 {[%clk 0:02:58]} 5. Bd3 {[%clk 0:03:00]}  Bxd3 {[%clk 0:02:58]} 6. Qxd3 {[%clk 0:02:59]}  e6 {[%clk 0:02:59]} 7. Bg5 {[%clk 0:02:57]}  Be7 {[%clk 0:02:59]} 8. Nf3 {[%clk 0:02:56]}  Nh6 {[%clk 0:02:59]} 9. Bxh6 {[%clk 0:02:54]}  Rxh6 {[%clk 0:02:59]} 10. c3 {[%clk 0:02:45]}  Nd7 {[%clk 0:02:59]} 11. Nbd2 {[%clk 0:02:43]}  g5 {[%clk 0:02:59]} 12. hxg5 {[%clk 0:02:36]}  Bxg5 {[%clk 0:03:00]} 13. Nxg5 {[%clk 0:02:24]}  Qxg5 {[%clk 0:03:01]} 14. g3 {[%clk 0:02:24]}  O-O-O {[%clk 0:02:55]} 15. Nf3 {[%clk 0:02:25]}  Qg4 {[%clk 0:02:54]} 16. O-O-O {[%clk 0:02:22]}  Rg8 {[%clk 0:02:50]} 17. Kb1 {[%clk 0:02:20]}  f6 {[%clk 0:02:47]} 18. Rde1 {[%clk 0:02:14]}  fxe5 {[%clk 0:02:46]} 19. Nxe5 {[%clk 0:02:14]}  Nxe5 {[%clk 0:02:46]} 20. Rxe5 {[%clk 0:02:13]}  Rf8 {[%clk 0:02:43]} 21. f4 {[%clk 0:01:59]}  h4 {[%clk 0:02:40]} 22. Rg5 {[%clk 0:01:59]}  hxg3 {[%clk 0:02:32]} 23. Rxg4 {[%clk 0:01:41]}  Rxh1+ {[%clk 0:02:31]} 24. Kc2 {[%clk 0:01:41]}  Rh2+ {[%clk 0:02:20]} 25. Kb3 {[%clk 0:01:39]}  g2 {[%clk 0:02:06]} 26. Qg3 {[%clk 0:01:38]}  Rfh8 {[%clk 0:02:06]} 27. Rg8+ {[%clk 0:01:37]}  Rxg8 {[%clk 0:02:06]} 28. Qxg8+ {[%clk 0:01:37]}  Kc7 {[%clk 0:02:06]} 29. Qg3 {[%clk 0:01:34]}  Rh4 {[%clk 0:02:06]} 30. Qxg2 {[%clk 0:01:33]}  Rxf4 {[%clk 0:02:06]} 31. Qg3 {[%clk 0:01:33]}  e5 {[%clk 0:02:06]} 32. dxe5 {[%clk 0:01:31]}  Kb6 {[%clk 0:02:05]} 33. Qxf4 {[%clk 0:01:29]}  c5 {[%clk 0:02:06]} 34. e6 {[%clk 0:01:27]}  a5 {[%clk 0:02:06]} 35. e7 {[%clk 0:01:27]}  c4+ {[%clk 0:02:06]} 36. Kc2 {[%clk 0:01:27]}  a4 {[%clk 0:02:07]} 37. Qd6+ {[%clk 0:01:25]}  Ka7 {[%clk 0:02:05]} 38. e8=Q {[%clk 0:01:24]}  a3 {[%clk 0:02:06]} 39. Qa4# {[%clk 0:01:22]} 1-0


[Site "https://www.chess.com"]

[Event "Titled Tuesday Blitz March 07 Early 2023"]
[White "Zaichenko, Daria"]
[Black "Ciuffoletti, Paolo"]
[WhiteFideId "4197453"]
[BlackFideId "807630"]
[WhiteElo "2039"]
[BlackElo "2143"]
[Result "1-0"]
[Round "11"]
[TimeControl "180+2"]
[Date "2023.03.07"]
[WhiteClock "0:00:54"]
[BlackClock "0:00:01"]

1. e4 {[%clk 0:03:00]}  c5 {[%clk 0:02:59]} 2. Nf3 {[%clk 0:03:01]}  Nc6 {[%clk 0:02:59]} 3. d4 {[%clk 0:03:01]}  cxd4 {[%clk 0:02:59]} 4. Nxd4 {[%clk 0:03:02]}  Nf6 {[%clk 0:03:00]} 5. Nc3 {[%clk 0:03:02]}  e5 {[%clk 0:03:00]} 6. Ndb5 {[%clk 0:03:02]}  d6 {[%clk 0:03:00]} 7. Bg5 {[%clk 0:03:02]}  a6 {[%clk 0:03:01]} 8. Na3 {[%clk 0:03:03]}  b5 {[%clk 0:03:01]} 9. Nd5 {[%clk 0:03:03]}  Be7 {[%clk 0:03:01]} 10. Bxf6 {[%clk 0:03:02]}  Bxf6 {[%clk 0:03:01]} 11. c3 {[%clk 0:03:03]}  O-O {[%clk 0:03:00]} 12. Nc2 {[%clk 0:02:59]}  Rb8 {[%clk 0:02:59]} 13. Be2 {[%clk 0:02:58]}  a5 {[%clk 0:02:59]} 14. O-O {[%clk 0:02:56]}  Bg5 {[%clk 0:02:58]} 15. Nce3 {[%clk 0:02:56]}  Ne7 {[%clk 0:02:54]} 16. Kh1 {[%clk 0:02:53]}  Be6 {[%clk 0:02:47]} 17. f4 {[%clk 0:02:50]}  Bxd5 {[%clk 0:02:34]} 18. Nxd5 {[%clk 0:02:46]}  Nxd5 {[%clk 0:02:33]} 19. Qxd5 {[%clk 0:02:43]}  Bxf4 {[%clk 0:02:30]} 20. g3 {[%clk 0:02:42]}  Be3 {[%clk 0:01:52]} 21. Bxb5 {[%clk 0:02:41]}  Bc5 {[%clk 0:01:46]} 22. a4 {[%clk 0:02:38]}  Qg5 {[%clk 0:01:34]} 23. Rf5 {[%clk 0:02:32]}  Qe7 {[%clk 0:01:20]} 24. Raf1 {[%clk 0:02:31]}  g6 {[%clk 0:01:19]} 25. Rf6 {[%clk 0:02:26]}  Kg7 {[%clk 0:01:19]} 26. Qd2 {[%clk 0:02:05]}  h6 {[%clk 0:01:14]} 27. Bc4 {[%clk 0:02:01]}  Qxf6 {[%clk 0:01:09]} 28. Rxf6 {[%clk 0:02:00]}  Kxf6 {[%clk 0:01:09]} 29. Qxh6 {[%clk 0:01:54]}  Rh8 {[%clk 0:01:09]} 30. Qd2 {[%clk 0:01:53]}  Rh7 {[%clk 0:00:33]} 31. h4 {[%clk 0:01:49]}  Rf8 {[%clk 0:00:27]} 32. Kg2 {[%clk 0:01:39]}  Kg7 {[%clk 0:00:25]} 33. Qg5 {[%clk 0:01:21]}  Rh5 {[%clk 0:00:24]} 34. Qe7 {[%clk 0:01:20]}  g5 {[%clk 0:00:20]} 35. hxg5 {[%clk 0:01:16]}  Rh7 {[%clk 0:00:04]} 36. Qf6+ {[%clk 0:01:14]}  Kg8 {[%clk 0:00:02]} 37. g6 {[%clk 0:01:12]}  Rg7 {[%clk 0:00:02]} 38. Bxf7+ {[%clk 0:01:11]}  Rfxf7 {[%clk 0:00:01]} 39. gxf7+ {[%clk 0:01:11]}  Rxf7 {[%clk 0:00:02]} 40. Qd8+ {[%clk 0:01:06]}  Kg7 {[%clk 0:00:01]} 41. Qxa5 {[%clk 0:01:05]}  Rf2+ {[%clk 0:00:01]} 42. Kh3 {[%clk 0:01:06]}  Rxb2 {[%clk 0:00:02]} 43. Qc7+ {[%clk 0:01:05]}  Kf6 {[%clk 0:00:02]} 44. Qd8+ {[%clk 0:01:03]}  Kf7 {[%clk 0:00:01]} 45. a5 {[%clk 0:01:02]}  Ra2 {[%clk 0:00:01]} 46. Qc8 {[%clk 0:00:54]} 1-0


[Site "https://www.chess.com"]

[Event "Titled Tuesday Blitz March 07 Early 2023"]
[White "Jesusesmifuerza"]
[Black "De Souza, Cristiano Gomes"]
[BlackFideId "2151758"]
[WhiteElo "2055"]
[BlackElo "2068"]
[Result "0-1"]
[Round "11"]
[TimeControl "180+2"]
[Date "2023.03.07"]
[WhiteClock "0:00:12"]
[BlackClock "0:01:41"]

1. d4 {[%clk 0:03:00]}  Nf6 {[%clk 0:02:59]} 2. Bg5 {[%clk 0:03:01]}  c5 {[%clk 0:02:58]} 3. d5 {[%clk 0:03:00]}  Qb6 {[%clk 0:02:55]} 4. Nc3 {[%clk 0:03:00]}  Qxb2 {[%clk 0:02:54]} 5. Bd2 {[%clk 0:03:00]}  Qb6 {[%clk 0:02:53]} 6. e4 {[%clk 0:03:00]}  d6 {[%clk 0:02:53]} 7. f4 {[%clk 0:02:58]}  Bg4 {[%clk 0:02:51]} 8. Be2 {[%clk 0:02:58]}  Bxe2 {[%clk 0:02:51]} 9. Qxe2 {[%clk 0:02:59]}  e6 {[%clk 0:02:50]} 10. e5 {[%clk 0:02:39]}  Nxd5 {[%clk 0:02:40]} 11. Nxd5 {[%clk 0:02:38]}  exd5 {[%clk 0:02:40]} 12. exd6+ {[%clk 0:02:38]}  Kd7 {[%clk 0:02:39]} 13. Qg4+ {[%clk 0:02:18]}  Kxd6 {[%clk 0:02:37]} 14. Nf3 {[%clk 0:01:59]}  Nc6 {[%clk 0:02:34]} 15. O-O {[%clk 0:01:52]}  Re8 {[%clk 0:02:21]} 16. Rfe1 {[%clk 0:01:47]}  Qd8 {[%clk 0:02:18]} 17. Rxe8 {[%clk 0:01:38]}  Qxe8 {[%clk 0:02:18]} 18. Re1 {[%clk 0:01:37]}  Qd7 {[%clk 0:02:17]} 19. f5 {[%clk 0:01:26]}  Kc7 {[%clk 0:02:14]} 20. Bf4+ {[%clk 0:01:26]}  Kc8 {[%clk 0:02:14]} 21. Qg3 {[%clk 0:01:04]}  g6 {[%clk 0:02:08]} 22. f6 {[%clk 0:00:59]}  h5 {[%clk 0:02:04]} 23. h4 {[%clk 0:00:43]}  Bh6 {[%clk 0:02:01]} 24. Ng5 {[%clk 0:00:43]}  Bxg5 {[%clk 0:02:00]} 25. hxg5 {[%clk 0:00:42]}  Re8 {[%clk 0:01:58]} 26. Rxe8+ {[%clk 0:00:32]}  Qxe8 {[%clk 0:01:58]} 27. Qd3 {[%clk 0:00:25]}  Qe4 {[%clk 0:01:52]} 28. Qxe4 {[%clk 0:00:21]}  dxe4 {[%clk 0:01:52]} 29. Kf2 {[%clk 0:00:22]}  Kd7 {[%clk 0:01:52]} 30. Ke3 {[%clk 0:00:22]}  Nd4 {[%clk 0:01:49]} 31. c4 {[%clk 0:00:16]}  a6 {[%clk 0:01:46]} 32. Kxe4 {[%clk 0:00:16]}  b5 {[%clk 0:01:47]} 33. Kd5 {[%clk 0:00:12]}  bxc4 {[%clk 0:01:42]} 34. Kxc4 {[%clk 0:00:12]}  Ne6 {[%clk 0:01:39]} 35. Be3 {[%clk 0:00:13]}  Kc6 {[%clk 0:01:38]} 36. a4 {[%clk 0:00:12]}  Kd6 {[%clk 0:01:38]} 37. g3 {[%clk 0:00:07]}  Ke5 {[%clk 0:01:38]} 38. Bxc5 {[%clk 0:00:07]}  Kf5 {[%clk 0:01:39]} 39. Be3 {[%clk 0:00:05]}  Nxg5 {[%clk 0:01:38]} 40. Bxg5 {[%clk 0:00:06]}  Kxg5 {[%clk 0:01:38]} 41. Kc5 {[%clk 0:00:07]}  Kg4 {[%clk 0:01:39]} 42. Kb6 {[%clk 0:00:08]}  Kxg3 {[%clk 0:01:40]} 43. Kxa6 {[%clk 0:00:09]}  h4 {[%clk 0:01:41]} 44. Kb5 {[%clk 0:00:09]}  h3 {[%clk 0:01:41]} 45. a5 {[%clk 0:00:10]}  h2 {[%clk 0:01:42]} 46. a6 {[%clk 0:00:11]}  h1=Q {[%clk 0:01:42]} 47. a7 {[%clk 0:00:12]}  Qb7+ {[%clk 0:01:41]} 0-1


[Site "https://www.chess.com"]

[Event "Titled Tuesday Blitz March 07 Early 2023"]
[White "Kiseleva, Arina"]
[Black "Kukula, Pawel"]
[WhiteFideId "4164989"]
[BlackFideId "1115081"]
[WhiteElo "1756"]
[BlackElo "2012"]
[Result "1-0"]
[Round "11"]
[TimeControl "180+2"]
[Date "2023.03.07"]
[WhiteClock "0:00:07"]
[BlackClock "0:00:10"]

1. d4 {[%clk 0:03:00]}  e6 {[%clk 0:02:55]} 2. Nf3 {[%clk 0:02:55]}  f5 {[%clk 0:02:54]} 3. g3 {[%clk 0:02:53]}  Nf6 {[%clk 0:02:54]} 4. Bg2 {[%clk 0:02:53]}  Be7 {[%clk 0:02:55]} 5. O-O {[%clk 0:02:52]}  d6 {[%clk 0:02:56]} 6. c4 {[%clk 0:02:52]}  O-O {[%clk 0:02:57]} 7. b3 {[%clk 0:02:50]}  a5 {[%clk 0:02:57]} 8. Bb2 {[%clk 0:02:50]}  Ne4 {[%clk 0:02:56]} 9. Nbd2 {[%clk 0:02:48]}  Bf6 {[%clk 0:02:57]} 10. Qc2 {[%clk 0:02:46]}  Nxd2 {[%clk 0:02:53]} 11. Nxd2 {[%clk 0:02:36]}  Nc6 {[%clk 0:02:54]} 12. e3 {[%clk 0:02:24]}  Qe8 {[%clk 0:02:47]} 13. d5 {[%clk 0:02:12]}  Nb4 {[%clk 0:02:47]} 14. Qb1 {[%clk 0:02:10]}  e5 {[%clk 0:02:48]} 15. Rc1 {[%clk 0:01:59]}  g5 {[%clk 0:02:37]} 16. c5 {[%clk 0:01:48]}  f4 {[%clk 0:02:32]} 17. exf4 {[%clk 0:01:39]}  gxf4 {[%clk 0:02:33]} 18. cxd6 {[%clk 0:01:34]}  cxd6 {[%clk 0:02:33]} 19. Ne4 {[%clk 0:01:23]}  fxg3 {[%clk 0:02:17]} 20. hxg3 {[%clk 0:01:15]}  Qe7 {[%clk 0:01:58]} 21. a3 {[%clk 0:01:05]}  Na6 {[%clk 0:01:55]} 22. Qd3 {[%clk 0:00:53]}  Bf5 {[%clk 0:01:48]} 23. Nxf6+ {[%clk 0:00:48]}  Qxf6 {[%clk 0:01:49]} 24. Qe2 {[%clk 0:00:48]}  Nc5 {[%clk 0:01:45]} 25. Rc3 {[%clk 0:00:38]}  Rae8 {[%clk 0:01:40]} 26. b4 {[%clk 0:00:33]}  Na4 {[%clk 0:01:38]} 27. Rc7 {[%clk 0:00:30]}  Nxb2 {[%clk 0:01:37]} 28. Qxb2 {[%clk 0:00:31]}  axb4 {[%clk 0:01:24]} 29. Rxb7 {[%clk 0:00:27]}  b3 {[%clk 0:01:12]} 30. Rxb3 {[%clk 0:00:23]}  Re7 {[%clk 0:01:06]} 31. a4 {[%clk 0:00:22]}  Ref7 {[%clk 0:01:07]} 32. a5 {[%clk 0:00:19]}  Rc7 {[%clk 0:00:53]} 33. Rc3 {[%clk 0:00:11]}  Rxc3 {[%clk 0:00:46]} 34. Qxc3 {[%clk 0:00:12]}  Bc8 {[%clk 0:00:45]} 35. Ra2 {[%clk 0:00:10]}  Ba6 {[%clk 0:00:44]} 36. Qc6 {[%clk 0:00:09]}  Bd3 {[%clk 0:00:35]} 37. a6 {[%clk 0:00:08]}  Qg5 {[%clk 0:00:34]} 38. a7 {[%clk 0:00:06]}  Bb1 {[%clk 0:00:19]} 39. a8=Q {[%clk 0:00:06]}  Bxa2 {[%clk 0:00:18]} 40. Qxa2 {[%clk 0:00:06]}  e4 {[%clk 0:00:16]} 41. Qb2 {[%clk 0:00:05]}  Qf5 {[%clk 0:00:16]} 42. Qbc2 {[%clk 0:00:04]}  Qe5 {[%clk 0:00:14]} 43. Qc7 {[%clk 0:00:03]}  Qa1+ {[%clk 0:00:13]} 44. Kh2 {[%clk 0:00:03]}  Qe5 {[%clk 0:00:13]} 45. Qd7 {[%clk 0:00:02]}  Qh5+ {[%clk 0:00:13]} 46. Bh3 {[%clk 0:00:01]}  Qe5 {[%clk 0:00:12]} 47. Kg2 {[%clk 0:00:01]}  e3 {[%clk 0:00:12]} 48. Qe6+ {[%clk 0:00:02]}  Qxe6 {[%clk 0:00:12]} 49. Bxe6+ {[%clk 0:00:03]}  Kg7 {[%clk 0:00:11]} 50. Qc3+ {[%clk 0:00:03]}  Kg6 {[%clk 0:00:10]} 51. fxe3 {[%clk 0:00:04]}  Rf6 {[%clk 0:00:11]} 52. Qd3+ {[%clk 0:00:05]}  Kg5 {[%clk 0:00:11]} 53. e4 {[%clk 0:00:05]}  h5 {[%clk 0:00:10]} 54. Qd2+ {[%clk 0:00:06]}  Kg6 {[%clk 0:00:11]} 55. Kh3 {[%clk 0:00:06]}  Rf3 {[%clk 0:00:10]} 56. Kh4 {[%clk 0:00:06]}  Kg7 {[%clk 0:00:04]} 57. Qg5+ {[%clk 0:00:06]}  Kh7 {[%clk 0:00:05]} 58. Qxh5+ {[%clk 0:00:07]}  Kg7 {[%clk 0:00:05]} 59. Qxf3 {[%clk 0:00:08]}  Kg6 {[%clk 0:00:06]} 60. g4 {[%clk 0:00:07]}  Kh7 {[%clk 0:00:06]} 61. g5 {[%clk 0:00:07]}  Kg6 {[%clk 0:00:07]} 62. Qf6+ {[%clk 0:00:07]}  Kh7 {[%clk 0:00:08]} 63. g6+ {[%clk 0:00:07]}  Kh6 {[%clk 0:00:09]} 64. g7+ {[%clk 0:00:07]}  Kh7 {[%clk 0:00:10]} 65. g8=Q# {[%clk 0:00:07]} 1-0


[Site "https://www.chess.com"]

[Event "Titled Tuesday Blitz March 07 Early 2023"]
[White "Biriukov, Ilja"]
[Black "Grigoryan, Meri"]
[WhiteFideId "4113373"]
[BlackFideId "13300571"]
[WhiteElo "2426"]
[BlackElo "1919"]
[Result "0-1"]
[Round "11"]
[TimeControl "180+2"]
[Date "2023.03.07"]
[WhiteClock "0:00:12"]
[BlackClock "0:00:09"]

1. e4 {[%clk 0:03:00]}  c6 {[%clk 0:02:59]} 2. d4 {[%clk 0:03:00]}  d5 {[%clk 0:03:00]} 3. exd5 {[%clk 0:03:00]}  cxd5 {[%clk 0:03:00]} 4. c4 {[%clk 0:03:01]}  Nf6 {[%clk 0:03:00]} 5. Nf3 {[%clk 0:02:59]}  e6 {[%clk 0:03:00]} 6. c5 {[%clk 0:02:59]}  Nc6 {[%clk 0:03:00]} 7. Nc3 {[%clk 0:03:00]}  Be7 {[%clk 0:03:00]} 8. Bd3 {[%clk 0:02:57]}  O-O {[%clk 0:03:01]} 9. Be3 {[%clk 0:02:55]}  Re8 {[%clk 0:03:01]} 10. a3 {[%clk 0:02:53]}  Bf8 {[%clk 0:03:01]} 11. b4 {[%clk 0:02:53]}  e5 {[%clk 0:03:01]} 12. dxe5 {[%clk 0:02:52]}  Nxe5 {[%clk 0:03:02]} 13. Nxe5 {[%clk 0:02:48]}  Rxe5 {[%clk 0:03:01]} 14. Ne2 {[%clk 0:02:47]}  Bg4 {[%clk 0:02:45]} 15. O-O {[%clk 0:02:45]}  b6 {[%clk 0:02:10]} 16. Bd4 {[%clk 0:02:41]}  Rh5 {[%clk 0:02:07]} 17. f3 {[%clk 0:02:37]}  Be6 {[%clk 0:01:31]} 18. Nf4 {[%clk 0:02:29]}  Rh6 {[%clk 0:01:29]} 19. cxb6 {[%clk 0:02:10]}  axb6 {[%clk 0:01:29]} 20. Qe2 {[%clk 0:02:10]}  Nh5 {[%clk 0:01:10]} 21. Nxh5 {[%clk 0:01:57]}  Rxh5 {[%clk 0:01:09]} 22. f4 {[%clk 0:01:58]}  Rh4 {[%clk 0:00:57]} 23. g3 {[%clk 0:01:53]}  Rh6 {[%clk 0:00:57]} 24. f5 {[%clk 0:01:52]}  Bc8 {[%clk 0:00:52]} 25. f6 {[%clk 0:01:40]}  gxf6 {[%clk 0:00:52]} 26. Be3 {[%clk 0:01:24]}  Rg6 {[%clk 0:00:40]} 27. Bxg6 {[%clk 0:01:23]}  fxg6 {[%clk 0:00:40]} 28. Bd4 {[%clk 0:01:20]}  Bg7 {[%clk 0:00:40]} 29. Qf2 {[%clk 0:01:13]}  Bf5 {[%clk 0:00:40]} 30. Bxb6 {[%clk 0:01:11]}  Qd6 {[%clk 0:00:33]} 31. Bc5 {[%clk 0:01:11]}  Qc6 {[%clk 0:00:32]} 32. Rfc1 {[%clk 0:01:06]}  Be4 {[%clk 0:00:28]} 33. Bd4 {[%clk 0:01:02]}  Qe6 {[%clk 0:00:28]} 34. b5 {[%clk 0:01:00]}  Bh6 {[%clk 0:00:27]} 35. Rc6 {[%clk 0:00:59]}  Qh3 {[%clk 0:00:24]} 36. Rxf6 {[%clk 0:00:54]}  Rf8 {[%clk 0:00:22]} 37. Rxf8+ {[%clk 0:00:53]}  Bxf8 {[%clk 0:00:23]} 38. Rf1 {[%clk 0:00:50]}  Bf5 {[%clk 0:00:20]} 39. b6 {[%clk 0:00:48]}  Bd6 {[%clk 0:00:20]} 40. b7 {[%clk 0:00:45]}  Qg4 {[%clk 0:00:20]} 41. Ba7 {[%clk 0:00:39]}  Qa4 {[%clk 0:00:18]} 42. b8=Q+ {[%clk 0:00:38]}  Bxb8 {[%clk 0:00:16]} 43. Bxb8 {[%clk 0:00:38]}  d4 {[%clk 0:00:15]} 44. Be5 {[%clk 0:00:31]}  d3 {[%clk 0:00:13]} 45. Qd4 {[%clk 0:00:25]}  Qc2 {[%clk 0:00:09]} 46. Qd5+ {[%clk 0:00:24]}  Kf8 {[%clk 0:00:09]} 47. Qd6+ {[%clk 0:00:22]}  Kf7 {[%clk 0:00:09]} 48. Qf6+ {[%clk 0:00:22]}  Ke8 {[%clk 0:00:09]} 49. Qh8+ {[%clk 0:00:18]}  Kd7 {[%clk 0:00:09]} 50. Qxh7+ {[%clk 0:00:18]}  Ke6 {[%clk 0:00:09]} 51. Qg8+ {[%clk 0:00:16]}  Kxe5 {[%clk 0:00:08]} 52. Re1+ {[%clk 0:00:16]}  Kd4 {[%clk 0:00:07]} 53. Qd8+ {[%clk 0:00:16]}  Kc3 {[%clk 0:00:06]} 54. Qc7+ {[%clk 0:00:15]}  Kd2 {[%clk 0:00:07]} 55. Qxc2+ {[%clk 0:00:15]}  dxc2 {[%clk 0:00:06]} 56. Rf1 {[%clk 0:00:14]}  c1=Q {[%clk 0:00:06]} 57. Rxc1 {[%clk 0:00:13]}  Kxc1 {[%clk 0:00:07]} 58. a4 {[%clk 0:00:13]}  Bd3 {[%clk 0:00:07]} 59. Kg2 {[%clk 0:00:13]}  Kd2 {[%clk 0:00:07]} 60. h4 {[%clk 0:00:13]}  Ke3 {[%clk 0:00:07]} 61. g4 {[%clk 0:00:13]}  Kf4 {[%clk 0:00:08]} 62. Kh3 {[%clk 0:00:13]}  Be2 {[%clk 0:00:07]} 63. a5 {[%clk 0:00:12]}  g5 {[%clk 0:00:06]} 64. h5 {[%clk 0:00:13]}  Bxg4+ {[%clk 0:00:06]} 65. Kg2 {[%clk 0:00:13]}  Bxh5 {[%clk 0:00:07]} 66. a6 {[%clk 0:00:12]}  Be8 {[%clk 0:00:08]} 67. a7 {[%clk 0:00:12]}  Bc6+ {[%clk 0:00:08]} 68. Kg1 {[%clk 0:00:12]}  g4 {[%clk 0:00:09]} 0-1


[Site "https://www.chess.com"]

[Event "Titled Tuesday Blitz March 07 Early 2023"]
[White "Pissama Ntsaou, Martial"]
[Black "Hartikainen, Jarmo"]
[WhiteFideId "17400864"]
[BlackFideId "503134"]
[WhiteElo "2059"]
[BlackElo "2190"]
[Result "0-1"]
[Round "11"]
[TimeControl "180+2"]
[Date "2023.03.07"]
[WhiteClock "0:00:55"]
[BlackClock "0:00:12"]

1. e4 {[%clk 0:03:00]}  c5 {[%clk 0:02:59]} 2. Nf3 {[%clk 0:03:00]}  Nc6 {[%clk 0:02:58]} 3. Bb5 {[%clk 0:03:00]}  g6 {[%clk 0:02:57]} 4. O-O {[%clk 0:02:59]}  Bg7 {[%clk 0:02:57]} 5. c3 {[%clk 0:02:58]}  Nf6 {[%clk 0:02:57]} 6. Qe2 {[%clk 0:02:57]}  O-O {[%clk 0:02:55]} 7. a4 {[%clk 0:02:54]}  d6 {[%clk 0:02:33]} 8. d4 {[%clk 0:02:48]}  Bg4 {[%clk 0:02:20]} 9. Nbd2 {[%clk 0:02:41]}  cxd4 {[%clk 0:02:09]} 10. Bxc6 {[%clk 0:02:39]}  bxc6 {[%clk 0:02:08]} 11. cxd4 {[%clk 0:02:39]}  d5 {[%clk 0:01:35]} 12. e5 {[%clk 0:02:32]}  Nd7 {[%clk 0:01:33]} 13. h3 {[%clk 0:02:31]}  Bxf3 {[%clk 0:01:26]} 14. Nxf3 {[%clk 0:02:32]}  e6 {[%clk 0:01:07]} 15. b4 {[%clk 0:02:27]}  a5 {[%clk 0:00:55]} 16. Ba3 {[%clk 0:02:25]}  axb4 {[%clk 0:00:50]} 17. Bxb4 {[%clk 0:02:25]}  c5 {[%clk 0:00:44]} 18. dxc5 {[%clk 0:02:21]}  Qc7 {[%clk 0:00:32]} 19. c6 {[%clk 0:02:15]}  Nxe5 {[%clk 0:00:29]} 20. Ra2 {[%clk 0:01:41]}  Nxf3+ {[%clk 0:00:15]} 21. Qxf3 {[%clk 0:01:41]}  Rfb8 {[%clk 0:00:15]} 22. Bd2 {[%clk 0:01:13]}  Qxc6 {[%clk 0:00:15]} 23. Rc1 {[%clk 0:01:14]}  Qd7 {[%clk 0:00:14]} 24. a5 {[%clk 0:01:12]}  Rb5 {[%clk 0:00:13]} 25. a6 {[%clk 0:01:10]}  Rb6 {[%clk 0:00:10]} 26. Qd3 {[%clk 0:01:06]}  Qa7 {[%clk 0:00:08]} 27. Be3 {[%clk 0:01:04]}  d4 {[%clk 0:00:04]} 28. Bxd4 {[%clk 0:01:03]}  Bxd4 {[%clk 0:00:04]} 29. Qxd4 {[%clk 0:01:03]}  Rxa6 {[%clk 0:00:04]} 30. Rac2 {[%clk 0:00:51]}  Qxd4 {[%clk 0:00:04]} 31. Rc4 {[%clk 0:00:40]}  Qd2 {[%clk 0:00:04]} 32. R4c2 {[%clk 0:00:39]}  Ra1 {[%clk 0:00:03]} 33. Rxd2 {[%clk 0:00:38]}  Rxc1+ {[%clk 0:00:03]} 34. Kh2 {[%clk 0:00:39]}  Kg7 {[%clk 0:00:03]} 35. Rb2 {[%clk 0:00:39]}  Raa1 {[%clk 0:00:03]} 36. Rd2 {[%clk 0:00:40]}  Rd1 {[%clk 0:00:02]} 37. Kg3 {[%clk 0:00:41]}  Rxd2 {[%clk 0:00:02]} 38. f3 {[%clk 0:00:41]}  Raa2 {[%clk 0:00:01]} 39. Kf4 {[%clk 0:00:42]}  Rxg2 {[%clk 0:00:02]} 40. h4 {[%clk 0:00:40]}  Rh2 {[%clk 0:00:03]} 41. h5 {[%clk 0:00:41]}  Rhb2 {[%clk 0:00:03]} 42. Kg3 {[%clk 0:00:40]}  Rb4 {[%clk 0:00:04]} 43. f4 {[%clk 0:00:40]}  gxh5 {[%clk 0:00:05]} 44. f5 {[%clk 0:00:41]}  exf5 {[%clk 0:00:05]} 45. Kf3 {[%clk 0:00:42]}  Kf6 {[%clk 0:00:06]} 46. Ke3 {[%clk 0:00:43]}  h4 {[%clk 0:00:06]} 47. Kd3 {[%clk 0:00:44]}  h3 {[%clk 0:00:07]} 48. Kc3 {[%clk 0:00:45]}  Rba4 {[%clk 0:00:08]} 49. Kb3 {[%clk 0:00:45]}  R2a3+ {[%clk 0:00:08]} 50. Kb2 {[%clk 0:00:46]}  h2 {[%clk 0:00:08]} 51. Kb1 {[%clk 0:00:46]}  Rg3 {[%clk 0:00:09]} 52. Kb2 {[%clk 0:00:47]}  Rg2+ {[%clk 0:00:09]} 53. Kb3 {[%clk 0:00:47]}  h1=Q {[%clk 0:00:09]} 54. Kxa4 {[%clk 0:00:48]}  Qh3 {[%clk 0:00:10]} 55. Kb5 {[%clk 0:00:49]}  Rg4 {[%clk 0:00:10]} 56. Kb6 {[%clk 0:00:50]}  Qb3+ {[%clk 0:00:10]} 57. Kc7 {[%clk 0:00:51]}  Qc4+ {[%clk 0:00:11]} 58. Kd8 {[%clk 0:00:51]}  Qd5+ {[%clk 0:00:11]} 59. Ke8 {[%clk 0:00:52]}  Qe6+ {[%clk 0:00:11]} 60. Kf8 {[%clk 0:00:53]}  Rc4 {[%clk 0:00:11]} 61. Kg8 {[%clk 0:00:53]}  Rc8+ {[%clk 0:00:12]} 62. Kxh7 {[%clk 0:00:54]}  Qe4 {[%clk 0:00:12]} 63. Kh6 {[%clk 0:00:54]}  Qf4+ {[%clk 0:00:12]} 64. Kh5 {[%clk 0:00:55]}  Qh2# {[%clk 0:00:12]} 0-1


[Site "https://www.chess.com"]